bitfinex/quotes_SOLUSD_20260201
["timestamp","ask_amount","ask_price","bid_price","bid_amount"]
[1769905180357,12.50407289,106.32,106.26,0.02069441]
[1769905180779,3.10840086,106.31,106.25,23.52941176]
[1769905181879,3.10840086,106.3,106.25,23.52941176]
[1769905182087,0.1,106.33,106.26,9.13168656]
[1769905182088,3.20840086,106.33,106.26,9.13168656]
[1769905182261,3.10840086,106.32,106.25,23.52941176]
[1769905182465,3.10840086,106.32,106.25,32.66109832]
[1769905183184,3.10840086,106.32,106.25,23.52941176]
[1769905183680,9.40645282,106.31,106.25,32.94117646]
[1769905183875,12.51485368,106.31,106.25,32.94117646]
[1769905184076,12.51485368,106.31,106.25,32.96588855]
[1769905184273,3.10840086,106.31,106.26,0.02471209]
[1769905185285,0.1,106.33,106.28,0.02953123]
[1769905185688,3.20840086,106.33,106.28,0.02953123]
[1769905187363,0.1,106.33,106.29,0.03910305]
[1769905187570,0.1,106.33,106.3,0.03910305]
[1769905188274,9.521,106.36,106.3,0.04380665]
[1769905188470,3.20840087,106.36,106.31,0.04380665]
[1769905189976,3.20840087,106.36,106.31,9.45025947]
[1769905190365,3.20840087,106.36,106.31,32.96639153]
[1769905190771,12.61056378,106.36,106.31,32.96639153]
[1769905191184,3.20840087,106.36,106.32,0.05305241]
[1769905192698,3.10840087,106.35,106.31,9.40645282]
[1769905194187,3.10840087,106.35,106.3,0.06652661]
[1769905195086,3.10840087,106.34,106.29,32.92828741]
[1769905195293,3.10840087,106.34,106.29,9.40822278]
[1769905196491,3.10840087,106.33,106.28,9.48436146]
[1769905196688,3.10840087,106.33,106.27,9.40967103]
[1769905197319,3.10840087,106.33,106.27,33.01843553]
[1769905197594,3.10840087,106.33,106.28,0.08378097]
[1769905198095,3.20840087,106.36,106.31,0.08378097]
[1769905198587,3.20840087,106.36,106.31,9.49023379]
[1769905198895,3.20840087,106.36,106.32,0.08797141]
[1769905198896,0.1,106.36,106.32,0.08797141]
[1769905200602,3.20840087,106.36,106.31,33.01879333]
[1769905200785,3.20840087,106.36,106.31,9.50266127]
[1769905201183,3.20840087,106.36,106.31,9.40645282]
[1769905201696,3.20840087,106.36,106.28,0.10025615]
[1769905202077,3.20840087,106.36,106.29,0.10425735]
[1769905202493,3.10840087,106.34,106.29,32.92877974]
[1769905203897,3.10840087,106.34,106.29,9.40822278]
[1769905204510,3.10840087,106.34,106.28,33.03537156]
[1769905205082,3.10840087,106.33,106.28,33.03537156]
[1769905205285,3.10840087,106.33,106.28,9.40910801]
[1769905206584,3.10840087,106.32,106.27,9.40999341]
[1769905208101,3.10840087,106.32,106.26,23.52579545]
[1769905208102,3.10840087,106.32,106.26,9.4104855]
[1769905208704,3.11017617,106.31,106.26,0.13100812]
[1769905211610,3.11017617,106.3,106.25,9.4117647]
[1769905211798,3.11017617,106.3,106.26,0.14182687]
[1769905212798,3.11017617,106.31,106.26,0.14182687]
[1769905213805,3.11017617,106.31,106.27,9.40999341]
[1769905214110,3.11017617,106.3,106.26,9.41046619]
[1769905215708,3.11017617,106.29,106.25,9.41139926]
[1769905216902,3.11017617,106.29,106.24,9.56823792]
[1769905217314,9.40910801,106.28,106.24,9.56823792]
[1769905217503,12.51928418,106.28,106.24,9.56823792]
[1769905218097,12.51928418,106.28,106.24,0.15568078]
[1769905219698,3.11017617,106.27,106.23,35.72205505]
[1769905220620,3.11017617,106.27,106.24,0.17212174]
[1769905221321,3.11017617,106.27,106.23,0.1752975]
[1769905223519,3.11017617,106.27,106.23,9.58813213]
[1769905224830,3.11017617,106.27,106.2,0.18460759]
[1769905224831,3.11017617,106.26,106.2,0.18460759]
[1769905225222,3.11017617,106.26,106.19,0.18763993]
[1769905225410,3.11017617,106.24,106.2,9.41569776]
[1769905226119,3.11017617,106.24,106.2,9.60333769]
[1769905227108,3.11017617,106.24,106.19,9.60753637]
[1769905227505,3.11017617,106.23,106.19,9.60753637]
[1769905227711,3.11017617,106.23,106.18,9.61117692]
[1769905229227,3.11017617,106.23,106.19,9.41705808]
[1769905229822,3.11017617,106.22,106.17,33.16437862]
[1769905230208,3.11017617,106.23,106.18,0.20228716]
[1769905230407,3.11017617,106.25,106.18,0.20228716]
[1769905232140,3.11017617,106.24,106.2,0.20511644]
[1769905233714,3.11017617,106.24,106.19,9.41708258]
[1769905234204,3.11017617,106.23,106.19,9.41708258]
[1769905235512,3.11017617,106.23,106.17,23.54573182]
[1769905235718,3.11017617,106.23,106.17,9.63414272]
[1769905236428,3.11017617,106.23,106.17,9.41803042]
[1769905236429,3.11017617,106.21,106.17,9.41803042]
[1769905237233,3.10840087,106.2,106.17,9.41803042]
[1769905237524,3.10840087,106.2,106.14,9.64500235]
[1769905237730,2.92669283,106.17,106.08,3.06907306]
[1769905237921,2.92669283,106.17,106.1,3.06907306]
[1769905238116,2.92669283,106.17,106.11,3.06907306]
[1769905238321,2.92669283,106.17,106.12,3.06907306]
[1769905238624,2.92669283,106.19,106.12,3.06907306]
[1769905239529,2.92669283,106.19,106.13,12.49147954]
[1769905239530,2.92669283,106.18,106.13,12.49147954]
[1769905239832,2.92669283,106.2,106.14,3.06907306]
[1769905241536,2.92669283,106.19,106.15,9.42063118]
[1769905242350,2.92669283,106.19,106.15,12.53253939]
[1769905243535,2.92669283,106.19,106.16,3.11190821]
[1769905244739,3.10780435,106.21,106.17,3.11190821]
[1769905244923,9.41437537,106.23,106.17,3.11190821]
[1769905244924,3.10780435,106.23,106.18,3.11190821]
[1769905245231,3.10780435,106.23,106.17,3.11190821]
[1769905245232,3.10780435,106.22,106.17,3.11190821]
[1769905246237,3.10780435,106.22,106.16,9.41953449]
[1769905246430,3.10780435,106.22,106.16,12.5314427]
[1769905246733,3.10780435,106.21,106.16,3.11190821]
[1769905248118,3.10780435,106.21,106.17,9.41885655]
[1769905249123,3.10780435,106.2,106.15,12.532048]
[1769905249635,3.10780435,106.2,106.15,9.42013979]
[1769905250346,3.10780435,106.19,106.14,9.42138293]
[1769905251347,3.10780435,106.18,106.13,26.66648181]
[1769905252949,3.10780435,106.18,106.13,36.08888829]
[1769905254248,9.4177204,106.19,106.14,3.11190821]
[1769905254434,3.10780435,106.19,106.14,3.11190821]
[1769905255251,12.52345714,106.21,106.16,3.11190821]
[1769905255643,3.10780435,106.2,106.16,3.11190821]
[1769905256430,3.10780435,106.21,106.16,3.11190821]
[1769905256632,126.23323508,106.24,106.17,3.11190821]
[1769905256633,3.10780435,106.24,106.17,3.11190821]
[1769905257321,3.10780435,106.23,106.18,12.52987769]
[1769905258125,3.10780435,106.23,106.19,3.11190821]
[1769905258420,3.10780435,106.26,106.19,3.11190821]
[1769905259429,3.10780435,106.24,106.19,9.416705]
[1769905260149,3.10780435,106.24,106.19,12.52861321]
[1769905260641,3.10780435,106.24,106.18,9.41780431]
[1769905260938,3.10780435,106.24,106.16,9.4194443]
[1769905261245,3.10780435,106.23,106.15,9.42027792]
[1769905261432,30.43527085,106.24,106.13,3.11190821]
[1769905261433,3.10780435,106.19,106.13,3.11190821]
[1769905261634,3.10780435,106.19,106.12,9.42272077]
[1769905262142,3.10780435,106.19,106.13,9.42239799]
[1769905263242,3.10780435,106.17,106.07,47.33661599]
[1769905263441,3.10780435,106.17,106.11,12.53606212]
[1769905263739,1.94278024,106.17,106.12,9.4230121]
[1769905264147,1.94278024,106.17,106.11,12.53575606]
[1769905264328,1.94278024,106.17,106.12,9.42326472]
[1769905265246,9.41974378,106.16,106.12,9.42326472]
[1769905265433,9.41974378,106.16,106.12,12.53517293]
[1769905265635,12.52754813,106.16,106.12,12.53517293]
[1769905265843,3.10780435,106.15,106.12,12.53517293]
[1769905266632,3.10780435,106.15,106.1,26.67359574]
[1769905266844,12.52846025,106.15,106.1,26.67359574]
[1769905267239,3.15937839,106.14,106.1,3.11190821]
[1769905267532,3.15937839,106.14,106.09,12.32117347]
[1769905268246,3.15937839,106.14,106.1,2.89521438]
[1769905268447,3.15937839,106.14,106.1,12.31977764]
[1769905268745,3.15937839,106.18,106.11,2.89521438]
[1769905268944,3.15937839,106.17,106.11,2.89521438]
[1769905269535,3.15937839,106.17,106.1,9.42456326]
[1769905269853,3.15937839,106.17,106.09,9.4256124]
[1769905270059,3.15937839,106.17,106.1,12.32022244]
[1769905270248,3.15937839,106.17,106.1,9.42500806]
[1769905270549,3.15937839,106.15,106.11,2.89521438]
[1769905271735,3.15937839,106.15,106.1,35.88289916]
[1769905272550,3.15937839,106.15,106.11,2.89521438]
[1769905272762,3.15937839,106.15,106.1,35.88289916]
[1769905273635,3.15937839,106.14,106.1,9.42506968]
[1769905273831,3.15937839,106.14,106.1,12.32028406]
[1769905277443,3.15937839,106.14,106.1,9.42506968]
[1769905278055,3.15937839,106.14,106.09,9.42560503]
[1769905278360,3.15937839,106.14,106.09,12.32081941]
[1769905278562,3.15937839,106.14,106.1,9.4249812]
[1769905278751,3.15937839,106.14,106.1,12.32019558]
[1769905279353,3.15937839,106.14,106.09,2.89521438]
[1769905279569,3.15937839,106.13,106.09,2.89521438]
[1769905280242,12.58016734,106.15,106.09,2.89521438]
[1769905280443,3.15937839,106.15,106.09,2.89521438]
[1769905280946,12.5802267,106.15,106.09,2.89521438]
[1769905281351,3.15937839,106.14,106.1,12.32028506]
[1769905282242,3.15937839,106.14,106.1,9.42507068]
[1769905282442,3.15937839,106.14,106.09,12.32107087]
[1769905282646,3.15937839,106.14,106.08,9.42644751]
[1769905282846,3.15937839,106.14,106.08,12.32166189]
[1769905283455,3.15937839,106.12,106.08,12.32166189]
[1769905285770,3.15937839,106.15,106.09,2.89521438]
[1769905287069,3.15937839,106.16,106.09,2.89521438]
[1769905287403,3.15937839,106.16,106.1,2.89521438]
[1769905287671,3.15937839,106.16,106.09,26.18]
[1769905287672,3.15937839,106.16,106.12,2.89521438]
[1769905288456,3.15937839,106.15,106.11,12.31939683]
[1769905288658,3.15937839,106.15,106.09,84.76353785]
[1769905288659,3.15937839,106.15,106.1,9.42485928]
[1769905289373,3.15937839,106.15,106.1,12.32007366]
[1769905289552,32.96939504,106.16,106.1,9.42485928]
[1769905289553,3.15937839,106.13,106.1,9.42485928]
[1769905290255,12.58089713,106.14,106.1,12.32009437]
[1769905290672,3.15937839,106.13,106.1,12.32009437]
[1769905291066,3.15937839,106.13,106.1,9.42487999]
[1769905291963,3.15937839,106.12,106.07,0.2]
[1769905293168,3.15937839,106.1,106.05,9.62924661]
[1769905293892,3.15937839,106.1,106.05,0.2]
[1769905295188,3.15937839,106.08,106.05,0.2]
[1769905297874,3.12087922,106.11,106.05,3.28306695]
[1769905298772,12.5432857,106.13,106.06,3.08306695]
[1769905298974,3.12087922,106.12,106.06,3.08306695]
[1769905299685,12.54476376,106.12,106.07,9.4277364]
[1769905299870,3.12087922,106.11,106.07,9.4277364]
[1769905300071,3.12087922,106.12,106.08,3.08306695]
[1769905301370,3.12087922,106.12,106.07,12.51080335]
[1769905301571,3.12087922,106.12,106.08,165.877137]
[1769905302085,3.12087922,106.12,106.08,178.33742673]
[1769905302472,12.44633213,106.15,106.09,3.0343032]
[1769905302676,3.02570095,106.14,106.09,3.0343032]
[1769905303481,3.02570095,106.14,106.08,165.877137]
[1769905303789,2.50041254,106.13,106.08,165.877137]
[1769905303983,32.98153033,106.12,106.08,165.877137]
[1769905305996,3.02570095,106.11,106.08,165.877137]
[1769905306167,3.02570095,106.09,106.08,107.80480798]
[1769905306372,3.02570095,106.09,106.05,0.2]
[1769905306896,3.02570095,106.09,106.05,3.2343032]
[1769905307413,12.45243327,106.09,106.05,3.2343032]
[1769905310401,12.45243327,106.09,106.05,0.2]
[1769905310402,0.35199535,106.08,106.05,0.2]
[1769905311070,33.34503873,106.09,106.05,3.2343032]
[1769905311271,9.78014101,106.09,106.05,3.2343032]
[1769905311483,35.601,106.12,106.05,3.2343032]
[1769905312188,9.421,106.12,106.05,3.2343032]
[1769905312402,35.601,106.12,106.05,3.2343032]
[1769905313297,23.56267672,106.1,106.05,3.2343032]
[1769905313474,37.26301825,106.1,106.05,3.2343032]
[1769905314196,13.70034153,106.1,106.06,3.16385387]
[1769905315790,9.42507068,106.1,106.07,3.16385387]
[1769905316396,3.71273853,106.14,106.07,3.16385387]
[1769905316582,50.80589355,106.18,106.07,3.16385387]
[1769905316787,77.00589355,106.18,106.07,3.16385387]
[1769905316983,4.27527085,106.15,106.07,3.16385387]
[1769905317698,0.02192923,106.16,106.09,3.16385387]
[1769905318000,0.02192923,106.14,106.08,3.16385387]
[1769905318584,0.02192923,106.14,106.07,3.16385387]
[1769905319700,4.30370256,106.11,106.07,3.16385387]
[1769905321203,4.27527085,106.11,106.07,3.16385387]
[1769905321605,13.70032665,106.11,106.07,3.16385387]
[1769905321797,13.73511232,106.11,106.07,3.16385387]
[1769905322702,13.70032665,106.11,106.07,3.16385387]
[1769905323306,9.4250558,106.11,106.07,3.16385387]
[1769905323615,9.42368663,106.12,106.08,3.16385387]
[1769905323814,9.4227824,106.13,106.09,3.16385387]
[1769905324289,23.5552393,106.14,106.09,3.16385387]
[1769905324290,9.42187439,106.14,106.09,3.16385387]
[1769905325198,9.42063118,106.15,106.09,9.42520789]
[1769905325521,9.42063118,106.15,106.1,3.16385387]
[1769905326593,9.41953165,106.17,106.1,3.16385387]
[1769905326811,9.4178726,106.19,106.11,3.16385387]
[1769905327510,9.4178726,106.19,106.13,3.16385387]
[1769905327807,33.01648231,106.19,106.13,3.16385387]
[1769905328997,9.41885655,106.17,106.12,3.16385387]
[1769905329199,32.96599792,106.17,106.12,3.16385387]
[1769905329401,0.06162976,106.16,106.1,12.58871495]
[1769905329911,0.06162976,106.16,106.11,3.16385387]
[1769905333303,0.07269339,106.14,106.09,3.16385387]
[1769905334012,33.04490252,106.15,106.09,3.16385387]
[1769905334617,0.07538034,106.14,106.09,3.16385387]
[1769905335928,33.05024555,106.15,106.1,3.16385387]
[1769905336219,0.08066199,106.14,106.09,3.16385387]
[1769905340320,0.09086616,106.13,106.07,12.59144856]
[1769905340524,0.09086616,106.13,106.08,3.16385387]
[1769905340699,0.09086616,106.12,106.07,3.16385387]
[1769905342614,33.08043269,106.11,106.07,3.16385387]
[1769905343401,9.42418245,106.11,106.07,3.16385387]
[1769905344326,9.42317718,106.13,106.08,3.16385387]
[1769905344523,9.42151874,106.14,106.09,3.16385387]
[1769905345602,0.10297582,106.13,106.09,3.16385387]
[1769905345834,0.10297582,106.13,106.08,3.16385387]
[1769905347209,37.35821365,106.14,106.08,9.4263605]
[1769905347437,37.35821365,106.14,106.09,3.16385387]
[1769905348721,0.10991288,106.13,106.09,3.16385387]
[1769905350224,37.25058646,106.14,106.09,3.16385387]
[1769905350416,37.36499227,106.14,106.09,3.16385387]
[1769905351633,0.11661365,106.13,106.09,3.16385387]
[1769905352608,9.42329438,106.12,106.09,3.16385387]
[1769905356223,0.12727821,106.11,106.06,3.16385387]
[1769905356427,0.12727821,106.08,106.05,0.2]
[1769905356620,0.12727821,106.06,106.03,0.2]
[1769905356929,0.12727821,106.08,106.03,3.36385387]
[1769905357945,0.12727821,106.08,106.01,3.36385387]
[1769905358117,4.51486789,106.02,106.01,3.36385387]
[1769905358316,3.38430236,106.02,106.01,3.36385387]
[1769905360134,12.81648496,106.02,106.01,3.36385387]
[1769905360339,12.81648496,106.02,106.01,0.2]
[1769905361036,3.38430236,106.02,106.01,3.36385387]
[1769905361534,12.81648496,106.02,106.01,0.2]
[1769905361841,12.81648496,106.02,105.98,9.63555936]
[1769905363428,9.4321826,106.02,105.98,9.63555936]
[1769905363953,33.00708958,106.04,105.99,3.04969085]
[1769905364151,9.43040362,106.04,106.0,3.04969085]
[1769905365521,9.43040362,106.04,106.0,2.26970137]
[1769905365829,36.19727716,106.04,105.98,9.63540588]
[1769905366224,3.19086449,106.03,105.98,0.2]
[1769905367736,3.19086449,106.03,105.99,3.04969085]
[1769905367934,3.19086449,106.03,105.99,2.57251792]
[1769905368738,9.4321826,106.02,105.99,2.57251792]
[1769905369124,12.62304709,106.02,105.99,0.57872744]
[1769905369441,12.62304709,106.02,105.98,0.2]
[1769905371154,26.7697521,106.03,105.98,9.63560584]
[1769905371349,26.7697521,106.03,105.99,3.04969085]
[1769905371656,3.19086449,106.02,105.98,9.63560584]
[1769905372462,9.42988034,106.05,105.98,9.63560584]
[1769905373430,3.19086449,106.04,105.98,33.22496232]
[1769905373836,3.19086449,106.04,105.99,2.64745015]
[1769905374447,3.19086449,106.04,106.0,12.08338299]
[1769905374448,12.6214395,106.04,106.0,12.08338299]
[1769905374649,12.6214395,106.04,106.0,11.68434183]
[1769905375751,3.19086449,106.03,105.99,2.65376352]
[1769905376757,3.19086449,106.03,105.99,12.08861586]
[1769905377331,3.19086449,106.03,105.98,12.3000856]
[1769905377645,3.19086449,106.03,105.99,2.66471237]
[1769905378248,3.19086449,106.02,105.98,9.63537323]
[1769905378435,3.19086449,106.02,105.98,0.2]
[1769905380055,3.19086449,106.02,105.98,12.31346356]
[1769905380245,12.62254274,106.03,105.99,2.68422502]
[1769905380456,12.62254274,106.03,105.95,0.2]
[1769905380457,3.19086449,106.02,105.93,94.58400179]
[1769905380759,7.46613534,105.98,105.93,3.04969085]
[1769905380938,3.19086449,106.0,105.93,3.04969085]
[1769905381134,3.19086449,106.0,105.94,3.04969085]
[1769905381849,3.19086449,105.99,105.93,3.04969085]
[1769905382056,3.19086449,105.99,105.94,3.04969085]
[1769905382251,3.19086449,105.99,105.95,3.04969085]
[1769905382453,3.71273853,106.04,105.95,3.04969085]
[1769905382454,4.91399767,106.1,105.96,3.04969085]
[1769905382651,32.99085681,106.09,105.99,3.04969085]
[1769905384054,37.26612766,106.09,105.99,3.04969085]
[1769905384364,3.19086449,106.06,106.01,3.04969085]
[1769905386043,9.42951438,106.05,106.01,3.04969085]
[1769905386249,3.19086449,106.04,105.98,3.04969085]
[1769905386449,3.19086449,106.04,105.99,12.48448698]
[1769905386649,3.19086449,106.04,105.99,3.04969085]
[1769905387966,3.19086449,106.04,105.97,12.61270706]
[1769905388184,3.26476513,106.02,105.97,12.61270706]
[1769905388346,3.26476513,106.02,105.97,3.17642048]
[1769905389549,3.26476513,106.02,105.96,9.43719323]
[1769905389856,3.26476513,106.0,105.96,12.61361371]
[1769905393068,3.26476513,105.99,105.94,3.17642048]
[1769905393269,9.43400414,106.0,105.96,12.61391876]
[1769905393569,3.26476513,106.0,105.96,12.61391876]
[1769905393760,3.26476513,106.0,105.97,3.17642048]
[1769905394772,12.69936293,106.0,105.97,3.17642048]
[1769905394973,12.69755577,106.02,105.98,3.17642048]
[1769905395655,3.26476513,106.05,105.98,3.17642048]
[1769905396877,12.69448396,106.05,105.99,9.43485234]
[1769905397084,3.26476513,106.04,106.0,3.17642048]
[1769905399071,3.26476513,106.02,105.98,12.61185779]
[1769905399758,9.43129303,106.03,105.99,3.17642048]
[1769905399969,12.69516875,106.04,105.99,3.17642048]
[1769905400478,3.26476513,106.03,105.99,3.17642048]
[1769905400769,12.69516875,106.04,105.99,3.17642048]
[1769905400950,3.26476513,106.04,106.0,12.61038274]
[1769905401656,12.69518245,106.04,106.0,3.17642048]
[1769905401955,3.26476513,106.03,105.99,12.61086186]
[1769905402149,12.69518245,106.04,106.0,3.17642048]
[1769905402872,12.68576513,106.03,105.98,3.17642048]
[1769905403062,3.26476513,106.03,105.98,3.17642048]
[1769905403463,3.26476513,106.03,105.96,97.40775305]
[1769905403679,3.26476513,106.03,105.97,3.17642048]
[1769905404362,3.26476513,106.02,105.97,3.17642048]
[1769905405276,3.26476513,106.01,105.97,12.61254771]
[1769905406875,3.26476513,106.01,105.92,51.4781939]
[1769905406876,3.26476513,106.0,105.95,3.17642048]
[1769905407758,3.26476513,106.0,105.94,12.61572574]
[1769905408069,3.26476513,106.0,105.92,12.61703436]
[1769905408267,3.26476513,106.0,105.93,3.17642048]
[1769905408473,3.26476513,106.0,105.94,3.17642048]
[1769905409279,3.26476513,105.98,105.94,12.61557982]
[1769905409474,3.26476513,105.98,105.94,3.17642048]
[1769905409781,3.26476513,105.98,105.93,12.61622098]
[1769905409962,3.26476513,105.98,105.94,12.61527143]
[1769905411361,3.26476513,105.97,105.92,36.21857269]
[1769905411568,3.26476513,105.97,105.91,12.81812348]
[1769905412581,3.26476513,105.95,105.91,12.81812348]
[1769905413282,3.26476513,105.95,105.91,0.2]
[1769905414786,9.43890372,105.95,105.91,0.2]
[1769905414972,3.26476513,105.94,105.91,0.2]
[1769905416582,3.26476513,105.94,105.87,3.37642048]
[1769905416769,84.50228216,105.95,105.87,3.37642048]
[1769905416770,12.70941945,105.88,105.87,1e-08]
[1769905417168,12.70941945,105.88,105.85,0.1]
[1769905417469,3.24475572,105.87,105.85,0.1]
[1769905418978,12.69042869,105.87,105.85,0.1]
[1769905419171,12.69042869,105.87,105.83,3.06985055]
[1769905419876,3.24475572,105.86,105.82,12.51948343]
[1769905420682,3.24475572,105.88,105.84,3.06985055]
[1769905420873,4.934,105.89,105.85,12.51718167]
[1769905421067,4.934,105.89,105.86,3.06985055]
[1769905422381,12.68695458,105.91,105.86,3.06985055]
[1769905422776,12.68695458,105.91,105.8,0.1]
[1769905422777,3.04675399,105.9,105.84,12.66771426]
[1769905422978,3.04675399,105.88,105.84,12.66771426]
[1769905423173,3.04675399,105.88,105.84,3.21989433]
[1769905423584,3.04675399,105.88,105.83,12.66894149]
[1769905424579,3.04675399,105.88,105.83,3.21989433]
[1769905425185,12.49230041,105.87,105.83,3.21989433]
[1769905426596,12.49230041,105.87,105.81,23.62606882]
[1769905426597,3.04675399,105.86,105.81,3.21989433]
[1769905426791,12.49230041,105.87,105.83,3.21989433]
[1769905428175,3.04675399,105.86,105.82,3.21989433]
[1769905429397,3.04675399,105.85,105.81,3.21989433]
[1769905431098,3.04675399,105.84,105.81,3.21989433]
[1769905431398,3.04675399,105.84,105.8,9.55170193]
[1769905432180,3.04675399,105.84,105.8,12.77159626]
[1769905432593,12.49552467,105.84,105.8,3.31989433]
[1769905432791,3.04675399,105.83,105.79,9.4522771]
[1769905434795,12.49590415,105.83,105.76,33.09379727]
[1769905435000,12.49590415,105.83,105.77,1.50204532]
[1769905435683,3.04675399,105.83,105.77,1.50204532]
[1769905436209,9.44865525,105.84,105.77,1.50204532]
[1769905436498,51.50420404,105.87,105.78,1.5040546]
[1769905436499,3.04675399,105.87,105.78,1.5040546]
[1769905436898,12.49269705,105.87,105.8,1.5040546]
[1769905438017,12.49269705,105.87,105.82,1.50504197]
[1769905438186,3.04675399,105.86,105.82,1.51093028]
[1769905438497,3.04675399,105.86,105.81,10.96183284]
[1769905439807,3.04675399,105.86,105.82,1.51675096]
[1769905439996,3.04675399,105.87,105.82,1.51675096]
[1769905441014,9.421,105.89,105.82,1.51675096]
[1769905441309,12.46775399,105.89,105.82,1.51675096]
[1769905441603,3.04675399,105.86,105.81,33.07815896]
[1769905441907,3.04675399,105.86,105.81,34.60635147]
[1769905442808,12.49328724,105.86,105.81,34.60635147]
[1769905443101,3.04675399,105.86,105.81,34.60635147]
[1769905444107,73.45103997,105.91,105.81,34.60635147]
[1769905444108,3.04675399,105.89,105.82,1.53937273]
[1769905444314,3.04675399,105.9,105.82,1.53937273]
[1769905444486,3.04675399,105.91,105.82,1.53937273]
[1769905445016,3.04675399,105.91,105.82,1.54486672]
[1769905446090,3.04675399,105.91,105.83,33.07190776]
[1769905446285,3.04675399,105.91,105.84,1.5556661]
[1769905448306,3.04675399,105.91,105.85,33.06565894]
[1769905448498,3.04675399,105.91,105.86,1.57140446]
[1769905449413,9.421,105.95,105.86,1.57140446]
[1769905449712,102.7,105.94,105.86,1.57140446]
[1769905450524,135.73895979,105.94,105.87,12.55204656]
[1769905451121,135.73895979,105.94,105.87,36.16591262]
[1769905451327,3.2571465,105.93,105.88,3.10650014]
[1769905452815,3.2571465,105.93,105.89,12.55026253]
[1769905453023,3.2571465,105.92,105.89,12.55026253]
[1769905454145,3.2571465,105.91,105.86,3.10650014]
[1769905454801,2.7571465,105.91,105.86,3.10650014]
[1769905456337,9.4425983,105.91,105.86,12.55262567]
[1769905456723,33.04754589,105.91,105.86,3.10650014]
[1769905456921,3.2571465,105.9,105.86,12.55288981]
[1769905458034,3.2571465,105.9,105.85,9.44708332]
[1769905458327,3.2571465,105.88,105.84,12.55421448]
[1769905458928,3.2571465,105.88,105.85,3.10650014]
[1769905459137,12.70090889,105.89,105.85,3.10650014]
[1769905459536,3.2571465,105.88,105.85,3.10650014]
[1769905460425,12.70090889,105.89,105.85,12.55350911]
[1769905461734,3.2571465,105.88,105.84,9.44789356]
[1769905462038,3.2571465,105.88,105.83,12.55542323]
[1769905462716,3.2571465,105.88,105.84,9.44819534]
[1769905462915,3.2571465,105.88,105.84,12.55469548]
[1769905463127,9.44376239,105.89,105.85,3.10650014]
[1769905463334,3.2571465,105.9,105.86,3.10650014]
[1769905463516,3.2571465,105.9,105.86,12.55271017]
[1769905464417,3.2571465,105.91,105.87,3.10650014]
[1769905464617,3.2571465,105.93,105.87,3.10650014]
[1769905465013,9.44056744,105.93,105.87,3.10650014]
[1769905465242,3.2571465,105.92,105.87,3.10650014]
[1769905465819,9.43942306,105.94,105.89,3.10650014]
[1769905466038,12.69656956,105.94,105.89,3.10650014]
[1769905467633,3.2571465,105.94,105.89,3.10650014]
[1769905467831,3.2571465,105.94,105.9,12.54937077]
[1769905468228,3.2571465,105.93,105.88,3.10650014]
[1769905468642,3.2571465,105.93,105.86,9.44602754]
[1769905468820,3.2571465,105.93,105.87,12.5520281]
[1769905469949,3.2571465,105.91,105.87,12.5520281]
[1769905470446,3.2571465,105.91,105.86,12.55251885]
[1769905471448,3.2571465,105.91,105.85,12.55377314]
[1769905472323,3.2571465,105.89,105.85,12.55377314]
[1769905474337,12.70001713,105.9,105.86,3.10650014]
[1769905474639,12.69950427,105.91,105.86,3.10650014]
[1769905474937,27.87720112,105.93,105.86,3.10650014]
[1769905474938,3.2571465,105.92,105.86,3.10650014]
[1769905476226,12.69846147,105.92,105.88,3.10650014]
[1769905476431,9.44131497,105.92,105.88,3.10650014]
[1769905476635,12.6975809,105.93,105.88,3.10650014]
[1769905477516,3.20190154,105.92,105.88,12.55073858]
[1769905477721,3.20190154,105.92,105.89,3.17861374]
[1769905479236,12.64233594,105.93,105.89,3.17861374]
[1769905479438,105.90190154,105.94,105.89,3.17861374]
[1769905479634,3.20190154,105.94,105.91,3.17861374]
[1769905480532,37.32627928,105.96,105.91,3.17861374]
[1769905480533,12.63947261,105.96,105.91,3.17861374]
[1769905480940,3.20190154,105.95,105.91,3.17861374]
[1769905481141,12.63892077,105.97,105.91,3.17861374]
[1769905481333,3.20190154,105.97,105.91,3.17861374]
[1769905481845,12.63869496,105.97,105.93,3.17861374]
[1769905482242,3.43333393,105.96,105.91,9.4417951]
[1769905483335,3.43333393,105.94,105.91,9.4417951]
[1769905483536,12.87174827,105.95,105.91,12.84772313]
[1769905483936,3.43333393,105.94,105.91,12.84772313]
[1769905484137,12.87174827,105.95,105.91,12.84772313]
[1769905487853,12.87174827,105.95,105.92,3.40592803]
[1769905488038,3.43333393,105.95,105.92,3.40592803]
[1769905488558,12.87179809,105.95,105.92,3.40592803]
[1769905489134,3.43333393,105.95,105.92,3.40592803]
[1769905489543,3.43333393,105.95,105.92,12.84701558]
[1769905489743,12.87120624,105.96,105.93,3.40592803]
[1769905489948,3.43333393,105.95,105.92,9.44108755]
[1769905490154,3.43333393,105.95,105.91,3.40592803]
[1769905491757,12.87218884,105.95,105.91,3.40592803]
[1769905492348,3.43333393,105.94,105.91,3.40592803]
[1769905492752,3.43333393,105.94,105.9,12.8480501]
[1769905493057,3.43333393,105.94,105.91,3.40592803]
[1769905495353,3.45966709,105.93,105.88,26.99964352]